[Event "Live Chess"]
[Site "Chess.com"]
[Date "2024.06.01"]
[Round "-"]
[White "Yarigo"]
[Black "NAZRIZ1977"]
[Result "0-1"]
[WhiteElo "2375"]
[BlackElo "2130"]
[TimeControl "300"]
[EndTime "9:55:22 PDT"]
[Termination "NAZRIZ1977 won on time"]

1. d4 {[%clk 0:04:55.2]} 1... Nf6 {[%clk 0:04:58.9]} 2. Nf3 {[%clk 0:04:53.7]}
2... g6 {[%clk 0:04:57.4]} 3. Bf4 {[%clk 0:04:49.3]} 3... d5 {[%clk 0:04:55.9]}
4. Nc3 {[%clk 0:04:47.3]} 4... Bg7 {[%clk 0:04:55.3]} 5. Qd2 {[%clk 0:04:45.8]}
5... c5 {[%clk 0:04:50.3]} 6. Bh6 {[%clk 0:04:41.4]} 6... Bxh6 {[%clk
0:04:49.1]} 7. Qxh6 {[%clk 0:04:36.8]} 7... cxd4 {[%clk 0:04:49]} 8. Nxd4 {[%clk
0:04:21]} 8... e5 {[%clk 0:04:43.2]} 9. Nf3 {[%clk 0:04:16.6]} 9... d4 {[%clk
0:04:30.3]} 10. O-O-O {[%clk 0:04:14]} 10... Qb6 {[%clk 0:04:16]} 11. Na4 {[%clk
0:03:18.7]} 11... Qe6 {[%clk 0:04:01.6]} 12. Kb1 {[%clk 0:02:50.7]} 12... Nbd7
{[%clk 0:03:59.3]} 13. e3 {[%clk 0:02:38.1]} 13... dxe3 {[%clk 0:03:51]} 14.
Qxe3 {[%clk 0:02:29.6]} 14... O-O {[%clk 0:03:41.8]} 15. Bd3 {[%clk 0:02:12.2]}
15... a6 {[%clk 0:03:40.2]} 16. Rhe1 {[%clk 0:02:06.1]} 16... Ng4 {[%clk
0:03:29.5]} 17. Qd2 {[%clk 0:01:59.5]} 17... b5 {[%clk 0:03:27.1]} 18. Nc3
{[%clk 0:01:56.6]} 18... Bb7 {[%clk 0:03:22.9]} 19. Be4 {[%clk 0:01:53.4]} 19...
Bxe4 {[%clk 0:03:17.7]} 20. Nxe4 {[%clk 0:01:51.8]} 20... Nb6 {[%clk 0:03:08.2]}
21. h3 {[%clk 0:01:45.5]} 21... Nf6 {[%clk 0:03:02.5]} 22. Nxf6+ {[%clk
0:01:30.8]} 22... Qxf6 {[%clk 0:03:01.2]} 23. Nxe5 {[%clk 0:01:29.6]} 23... Rfd8
{[%clk 0:02:41.8]} 24. Qe3 {[%clk 0:01:27.6]} 24... Rxd1+ {[%clk 0:02:27]} 25.
Rxd1 {[%clk 0:01:25.8]} 25... Re8 {[%clk 0:02:26.9]} 26. f4 {[%clk 0:01:24.2]}
26... Nc4 {[%clk 0:02:24.2]} 27. Qd4 {[%clk 0:01:18.7]} 27... Nxe5 {[%clk
0:02:15.5]} 28. fxe5 {[%clk 0:01:17.2]} 28... Qxe5 {[%clk 0:02:14.9]} 29. Qxe5
{[%clk 0:01:15]} 29... Rxe5 {[%clk 0:02:14.8]} 30. a4 {[%clk 0:01:07.5]} 30...
Kg7 {[%clk 0:01:36.6]} 31. axb5 {[%clk 0:00:54.5]} 31... axb5 {[%clk 0:01:36.5]}
32. Rd2 {[%clk 0:00:53]} 32... g5 {[%clk 0:01:34.2]} 33. Ka2 {[%clk 0:00:51.4]}
33... Kg6 {[%clk 0:01:33.6]} 34. Ka3 {[%clk 0:00:47.5]} 34... h5 {[%clk
0:01:26.2]} 35. Kb4 {[%clk 0:00:43.8]} 35... g4 {[%clk 0:01:24.3]} 36. hxg4
{[%clk 0:00:41.1]} 36... hxg4 {[%clk 0:01:24.2]} 37. c4 {[%clk 0:00:28]} 37...
bxc4 {[%clk 0:01:24.1]} 38. Kxc4 {[%clk 0:00:26.5]} 38... f5 {[%clk 0:01:17.6]}
39. b4 {[%clk 0:00:25.7]} 39... f4 {[%clk 0:01:12.6]} 40. b5 {[%clk 0:00:24.6]}
40... Kg5 {[%clk 0:01:07.6]} 41. b6 {[%clk 0:00:23.1]} 41... Re7 {[%clk
0:01:03.7]} 42. Kb5 {[%clk 0:00:15.9]} 42... f3 {[%clk 0:01:02.1]} 43. gxf3
{[%clk 0:00:14]} 43... gxf3 {[%clk 0:01:02]} 44. Ka6 {[%clk 0:00:11.4]} 44...
Re2 {[%clk 0:00:45.2]} 45. Rd5+ {[%clk 0:00:09.4]} 45... Kg4 {[%clk 0:00:44.4]}
46. Rd8 {[%clk 0:00:05.6]} 46... Ra2+ {[%clk 0:00:40.4]} 47. Kb5 {[%clk
0:00:03.5]} 47... Rb2+ {[%clk 0:00:40.3]} 48. Kc6 {[%clk 0:00:01.9]} 48... Rc2+
{[%clk 0:00:40.2]} 49. Kb5 {[%clk 0:00:01]} 49... f2 {[%clk 0:00:37.8]} 0-1

[Event "Live Chess"]
[Site "Chess.com"]
[Date "2024.06.01"]
[Round "-"]
[White "DJ_Lambton"]
[Black "CarmelJane"]
[Result "1/2-1/2"]
[WhiteElo "1765"]
[BlackElo "2115"]
[TimeControl "300"]
[EndTime "9:55:24 PDT"]
[Termination "Game drawn by repetition"]

1. c4 {[%clk 0:04:57.9]} 1... e5 {[%clk 0:04:58.5]} 2. g3 {[%clk 0:04:57.2]}
2... h5 {[%clk 0:04:53.5]} 3. h4 {[%clk 0:04:55.8]} 3... Bc5 {[%clk 0:04:49.9]}
4. d3 {[%clk 0:04:54.6]} 4... Nf6 {[%clk 0:04:47.7]} 5. Bg5 {[%clk 0:04:53.2]}
5... d6 {[%clk 0:04:31.5]} 6. Nc3 {[%clk 0:04:52]} 6... c6 {[%clk 0:04:27.2]} 7.
Bg2 {[%clk 0:04:49.5]} 7... Bg4 {[%clk 0:04:15.6]} 8. Nf3 {[%clk 0:04:32.7]}
8... Qb6 {[%clk 0:04:07.3]} 9. e3 {[%clk 0:04:14.7]} 9... Qxb2 {[%clk 0:03:57]}
10. Ne4 {[%clk 0:04:06.4]} 10... Nxe4 {[%clk 0:03:48.8]} 11. dxe4 {[%clk
0:04:05]} 11... Qc3+ {[%clk 0:03:27.5]} 12. Kf1 {[%clk 0:04:00.8]} 12... Qxc4+
{[%clk 0:03:25]} 13. Kg1 {[%clk 0:03:59.8]} 13... f6 {[%clk 0:03:20.5]} 14. Bxf6
{[%clk 0:03:57.2]} 14... gxf6 {[%clk 0:03:18.1]} 15. Rc1 {[%clk 0:03:56.7]}
15... Qe6 {[%clk 0:03:11.2]} 16. Kh2 {[%clk 0:03:55.3]} 16... Nd7 {[%clk
0:02:57.8]} 17. Qc2 {[%clk 0:03:48.3]} 17... Bxf3 {[%clk 0:02:54.8]} 18. Bxf3
{[%clk 0:03:47.2]} 18... Ke7 {[%clk 0:02:44.6]} 19. Rhd1 {[%clk 0:03:42.7]}
19... a5 {[%clk 0:02:40.6]} 20. Be2 {[%clk 0:03:38.9]} 20... a4 {[%clk
0:02:26.4]} 21. Bc4 {[%clk 0:03:37.1]} 21... Qg4 {[%clk 0:02:25.9]} 22. Be2
{[%clk 0:03:35.1]} 22... Qg6 {[%clk 0:02:22.2]} 23. Bf1 {[%clk 0:03:33.2]} 23...
a3 {[%clk 0:02:15.7]} 24. Bh3 {[%clk 0:03:31.8]} 24... Ra5 {[%clk 0:01:52.6]}
25. Qd2 {[%clk 0:03:30.3]} 25... f5 {[%clk 0:01:34.2]} 26. Rxc5 {[%clk
0:03:28.2]} 26... Rxc5 {[%clk 0:01:30.3]} 27. exf5 {[%clk 0:03:27.5]} 27... Qf6
{[%clk 0:01:28.2]} 28. Qb4 {[%clk 0:03:24]} 28... b5 {[%clk 0:01:12.8]} 29. Rd2
{[%clk 0:03:22.5]} 29... Ra8 {[%clk 0:01:10.8]} 30. e4 {[%clk 0:03:20.9]} 30...
Ra4 {[%clk 0:01:09.8]} 31. Qb3 {[%clk 0:03:19.2]} 31... Rxe4 {[%clk 0:01:06.9]}
32. Qxa3 {[%clk 0:03:18.4]} 32... Ra4 {[%clk 0:01:03.9]} 33. Qb3 {[%clk
0:03:17.5]} 33... Nb6 {[%clk 0:00:58.6]} 34. Qd3 {[%clk 0:03:11.4]} 34... Nd5
{[%clk 0:00:56.6]} 35. Bg2 {[%clk 0:03:08]} 35... Rd4 {[%clk 0:00:55.6]} 36. Qe2
{[%clk 0:02:58.3]} 36... Rxd2 {[%clk 0:00:55.1]} 37. Qxd2 {[%clk 0:02:57.8]}
37... Qxf5 {[%clk 0:00:52.9]} 38. Qa5 {[%clk 0:02:55.1]} 38... Qxf2 {[%clk
0:00:50.1]} 39. Qa7+ {[%clk 0:02:53.6]} 39... Ke6 {[%clk 0:00:49.4]} 40. Qb8
{[%clk 0:02:51.1]} 40... Ne3 {[%clk 0:00:48.2]} 41. Qc8+ {[%clk 0:02:50]} 41...
Ke7 {[%clk 0:00:46]} 42. Qc7+ {[%clk 0:02:48.9]} 42... Kf8 {[%clk 0:00:45]} 43.
Qd8+ {[%clk 0:02:47.2]} 43... Kg7 {[%clk 0:00:43.2]} 44. Qg5+ {[%clk 0:02:45.3]}
44... Kf8 {[%clk 0:00:39.4]} 45. Qd8+ {[%clk 0:02:43.8]} 45... Kf7 {[%clk
0:00:35.3]} 46. Qd7+ {[%clk 0:02:40.4]} 46... Kg8 {[%clk 0:00:32.2]} 47. Qe8+
{[%clk 0:02:36.9]} 47... Qf8 {[%clk 0:00:29.7]} 48. Qg6+ {[%clk 0:02:36.1]}
48... Qg7 {[%clk 0:00:29.3]} 49. Qe8+ {[%clk 0:02:34.9]} 49... Qf8 {[%clk
0:00:22.2]} 50. Qg6+ {[%clk 0:02:33.8]} 50... Qg7 {[%clk 0:00:19.2]} 51. Qe8+
{[%clk 0:02:32.9]} 51... Qf8 {[%clk 0:00:18.5]} 1/2-1/2

[Event "Live Chess"]
[Site "Chess.com"]
[Date "2024.06.01"]
[Round "-"]
[White "degringolade64"]
[Black "vincents82"]
[Result "0-1"]
[WhiteElo "2073"]
[BlackElo "2156"]
[TimeControl "300"]
[EndTime "9:55:41 PDT"]
[Termination "vincents82 won by resignation"]

1. e4 {[%clk 0:04:56.3]} 1... d5 {[%clk 0:04:55]} 2. exd5 {[%clk 0:04:54.8]}
2... Qxd5 {[%clk 0:04:52]} 3. Nc3 {[%clk 0:04:53.8]} 3... Qd8 {[%clk 0:04:50.8]}
4. d4 {[%clk 0:04:51.4]} 4... Nf6 {[%clk 0:04:49.4]} 5. Nf3 {[%clk 0:04:49.3]}
5... Bg4 {[%clk 0:04:47.5]} 6. h3 {[%clk 0:04:47.9]} 6... Bxf3 {[%clk
0:04:46.4]} 7. Qxf3 {[%clk 0:04:46.3]} 7... c6 {[%clk 0:04:45.8]} 8. Be3 {[%clk
0:04:34.2]} 8... e6 {[%clk 0:04:44.6]} 9. O-O-O {[%clk 0:04:33.1]} 9... Bb4
{[%clk 0:04:43.5]} 10. Bg5 {[%clk 0:04:21.4]} 10... Nbd7 {[%clk 0:03:51.4]} 11.
Ne4 {[%clk 0:04:15.6]} 11... h6 {[%clk 0:03:28.9]} 12. Bxf6 {[%clk 0:04:07]}
12... Nxf6 {[%clk 0:03:27.3]} 13. Nxf6+ {[%clk 0:03:48.7]} 13... Qxf6 {[%clk
0:03:14.7]} 14. Qxf6 {[%clk 0:03:46.9]} 14... gxf6 {[%clk 0:03:13.4]} 15. c3
{[%clk 0:03:40.7]} 15... Bd6 {[%clk 0:03:09.7]} 16. g3 {[%clk 0:03:35.2]} 16...
f5 {[%clk 0:03:03.2]} 17. Bg2 {[%clk 0:03:25.1]} 17... Ke7 {[%clk 0:02:58.8]}
18. Rhe1 {[%clk 0:03:21.6]} 18... Kf6 {[%clk 0:02:57.5]} 19. c4 {[%clk
0:03:14.3]} 19... Rac8 {[%clk 0:02:49.8]} 20. a3 {[%clk 0:03:07.5]} 20... Rhg8
{[%clk 0:02:48.4]} 21. b4 {[%clk 0:02:50.6]} 21... a5 {[%clk 0:02:44.3]} 22. c5
{[%clk 0:02:44.1]} 22... Bc7 {[%clk 0:02:39.5]} 23. Kc2 {[%clk 0:02:43.1]} 23...
Ra8 {[%clk 0:02:33.1]} 24. b5 {[%clk 0:02:37.8]} 24... cxb5 {[%clk 0:02:14.5]}
25. Rb1 {[%clk 0:02:36.4]} 25... b4 {[%clk 0:02:10.4]} 26. axb4 {[%clk
0:02:34.8]} 26... axb4 {[%clk 0:02:09.5]} 27. Rxb4 {[%clk 0:02:34.4]} 27... Ba5
{[%clk 0:02:07.2]} 28. Reb1 {[%clk 0:02:29.6]} 28... Bxb4 {[%clk 0:02:02.4]} 29.
Rxb4 {[%clk 0:02:29.5]} 29... Ra2+ {[%clk 0:02:00.9]} 30. Rb2 {[%clk 0:02:27.2]}
30... Rxb2+ {[%clk 0:01:54.8]} 31. Kxb2 {[%clk 0:02:27.1]} 31... Rb8 {[%clk
0:01:53.7]} 32. Kc3 {[%clk 0:02:25.7]} 32... Ke7 {[%clk 0:01:50.5]} 33. Kc4
{[%clk 0:02:24]} 33... b6 {[%clk 0:01:49.9]} 34. c6 {[%clk 0:02:22.4]} 34... Kd6
{[%clk 0:01:49.1]} 35. Kb5 {[%clk 0:02:20.5]} 35... Kc7 {[%clk 0:01:44.4]} 36.
d5 {[%clk 0:02:16.7]} 36... Rd8 {[%clk 0:01:40.2]} 37. dxe6 {[%clk 0:02:15.7]}
37... fxe6 {[%clk 0:01:38.9]} 38. g4 {[%clk 0:02:12.8]} 38... fxg4 {[%clk
0:01:27]} 39. hxg4 {[%clk 0:02:12.7]} 39... Rd2 {[%clk 0:01:24]} 0-1

[Event "Live Chess"]
[Site "Chess.com"]
[Date "2024.06.01"]
[Round "-"]
[White "jumush"]
[Black "ProfPoisson"]
[Result "1-0"]
[WhiteElo "1742"]
[BlackElo "1232"]
[TimeControl "300"]
[EndTime "9:55:44 PDT"]
[Termination "jumush won by checkmate"]

1. e4 {[%clk 0:04:56.5]} 1... e5 {[%clk 0:04:55.9]} 2. Nc3 {[%clk 0:04:53.4]}
2... Nf6 {[%clk 0:04:53.6]} 3. Bc4 {[%clk 0:04:50.4]} 3... c6 {[%clk 0:04:39.7]}
4. d3 {[%clk 0:04:48.1]} 4... d5 {[%clk 0:04:10.4]} 5. exd5 {[%clk 0:04:44.1]}
5... cxd5 {[%clk 0:04:08.5]} 6. Bb3 {[%clk 0:04:40.4]} 6... Bb4 {[%clk
0:04:01.5]} 7. Bd2 {[%clk 0:04:37.2]} 7... O-O {[%clk 0:03:57.4]} 8. Nf3 {[%clk
0:04:33.2]} 8... Bg4 {[%clk 0:03:50.3]} 9. h3 {[%clk 0:04:29.4]} 9... e4 {[%clk
0:03:45.3]} 10. hxg4 {[%clk 0:04:26.4]} 10... exf3 {[%clk 0:03:42.4]} 11. Qxf3
{[%clk 0:04:21.3]} 11... Re8+ {[%clk 0:03:37.2]} 12. Kf1 {[%clk 0:04:18.4]}
12... Qd7 {[%clk 0:03:30.6]} 13. Re1 {[%clk 0:04:14.9]} 13... Nc6 {[%clk
0:03:27.1]} 14. g5 {[%clk 0:04:07.1]} 14... Rxe1+ {[%clk 0:03:21.7]} 15. Bxe1
{[%clk 0:04:03.1]} 15... Ng4 {[%clk 0:03:17]} 16. Qh3 {[%clk 0:03:59.9]} 16...
Qf5 {[%clk 0:02:55.5]} 17. Bxd5 {[%clk 0:03:32.8]} 17... Nd4 {[%clk 0:02:43]}
18. Be4 {[%clk 0:03:22.1]} 18... Qxg5 {[%clk 0:02:08.1]} 19. Qxh7+ {[%clk
0:03:15.2]} 19... Kf8 {[%clk 0:02:07.4]} 20. Nd5 {[%clk 0:02:59.2]} 20... Ne3+
{[%clk 0:01:53.8]} 21. fxe3 {[%clk 0:02:44.6]} 21... Bxe1 {[%clk 0:01:51.7]} 22.
Qh8# {[%clk 0:02:42.2]} 1-0

[Event "Live Chess"]
[Site "Chess.com"]
[Date "2024.06.01"]
[Round "-"]
[White "IanCalvert2"]
[Black "GEMdzq"]
[Result "0-1"]
[WhiteElo "1540"]
[BlackElo "2356"]
[TimeControl "300"]
[EndTime "9:55:52 PDT"]
[Termination "GEMdzq won by resignation"]

1. b3 {[%clk 0:04:55.6]} 1... e5 {[%clk 0:04:57.9]} 2. Bb2 {[%clk 0:04:54.4]}
2... d6 {[%clk 0:04:56.4]} 3. e3 {[%clk 0:04:50.6]} 3... Nf6 {[%clk 0:04:55.7]}
4. Nf3 {[%clk 0:04:46.6]} 4... Be7 {[%clk 0:04:55.1]} 5. d4 {[%clk 0:04:41.9]}
5... e4 {[%clk 0:04:52.1]} 6. Nfd2 {[%clk 0:04:38.6]} 6... O-O {[%clk
0:04:46.9]} 7. c4 {[%clk 0:04:35.3]} 7... c6 {[%clk 0:04:43.7]} 8. Nc3 {[%clk
0:04:34.1]} 8... d5 {[%clk 0:04:42.9]} 9. Be2 {[%clk 0:04:32.2]} 9... Bf5 {[%clk
0:04:37.8]} 10. g4 {[%clk 0:04:18.3]} 10... Bg6 {[%clk 0:04:36.7]} 11. g5 {[%clk
0:04:15]} 11... Ne8 {[%clk 0:04:34.1]} 12. h4 {[%clk 0:04:12.1]} 12... Bf5
{[%clk 0:04:26.3]} 13. Qc2 {[%clk 0:03:52.9]} 13... Na6 {[%clk 0:04:24.5]} 14.
a3 {[%clk 0:03:50.4]} 14... Nac7 {[%clk 0:04:17.3]} 15. O-O-O {[%clk 0:03:48]}
15... b5 {[%clk 0:04:15.8]} 16. c5 {[%clk 0:03:42.2]} 16... a5 {[%clk
0:04:13.2]} 17. Ncb1 {[%clk 0:03:30.1]} 17... Na6 {[%clk 0:04:00]} 18. Rdg1
{[%clk 0:03:26.6]} 18... Nec7 {[%clk 0:03:40.3]} 19. Bg4 {[%clk 0:03:17.8]}
19... Bxg4 {[%clk 0:03:38]} 20. Rxg4 {[%clk 0:03:15.4]} 20... Ne6 {[%clk
0:03:36.1]} 21. f4 {[%clk 0:03:02.9]} 21... exf3 {[%clk 0:03:33.9]} 22. Nxf3
{[%clk 0:02:58.2]} 22... Nac7 {[%clk 0:02:47.9]} 23. Qg2 {[%clk 0:02:50.3]}
23... Kh8 {[%clk 0:02:36.9]} 24. h5 {[%clk 0:02:40.6]} 24... f5 {[%clk
0:02:35.9]} 25. gxf6 {[%clk 0:02:30.6]} 25... Bxf6 {[%clk 0:02:34.8]} 26. Ne5
{[%clk 0:02:22]} 26... Bxe5 {[%clk 0:02:25.4]} 27. dxe5 {[%clk 0:02:17.3]} 27...
Qe7 {[%clk 0:02:24.6]} 28. Bd4 {[%clk 0:02:03.7]} 28... Nxc5 {[%clk 0:02:07]}
29. h6 {[%clk 0:01:50.5]} 29... g6 {[%clk 0:01:42.3]} 30. e6+ {[%clk 0:01:21.9]}
30... Rf6 {[%clk 0:01:41.1]} 31. Rf1 {[%clk 0:01:09.6]} 31... Nxb3+ {[%clk
0:01:39.6]} 32. Kb2 {[%clk 0:01:04]} 32... Nxd4 {[%clk 0:01:38.8]} 33. exd4
{[%clk 0:01:02]} 33... Raf8 {[%clk 0:01:29.6]} 34. Rxf6 {[%clk 0:00:49.6]} 34...
Qxf6 {[%clk 0:01:27.4]} 35. Nd2 {[%clk 0:00:45.7]} 35... Nxe6 {[%clk 0:01:26.2]}
36. Qe2 {[%clk 0:00:39.6]} 36... Nxd4 {[%clk 0:01:22.8]} 0-1

[Event "Live Chess"]
[Site "Chess.com"]
[Date "2024.06.01"]
[Round "-"]
[White "Colm_Buckley"]
[Black "Trecregin"]
[Result "0-1"]
[WhiteElo "1797"]
[BlackElo "1846"]
[TimeControl "300"]
[EndTime "9:55:54 PDT"]
[Termination "Trecregin won on time"]

1. d4 {[%clk 0:04:57.5]} 1... c5 {[%clk 0:04:58.1]} 2. c3 {[%clk 0:04:56.5]}
2... cxd4 {[%clk 0:04:56.8]} 3. cxd4 {[%clk 0:04:55.1]} 3... Qb6 {[%clk
0:04:56.1]} 4. Nc3 {[%clk 0:04:52.9]} 4... e6 {[%clk 0:04:55.1]} 5. Nf3 {[%clk
0:04:51.8]} 5... Nf6 {[%clk 0:04:54.3]} 6. e3 {[%clk 0:04:49.9]} 6... d5 {[%clk
0:04:53.4]} 7. Bd3 {[%clk 0:04:48.7]} 7... Nc6 {[%clk 0:04:52.6]} 8. O-O {[%clk
0:04:47.5]} 8... Bd6 {[%clk 0:04:51.4]} 9. a4 {[%clk 0:04:42.4]} 9... O-O {[%clk
0:04:48.6]} 10. Nb5 {[%clk 0:04:35.3]} 10... Be7 {[%clk 0:04:41.6]} 11. Qe2
{[%clk 0:04:28.8]} 11... Nb4 {[%clk 0:04:38.8]} 12. a5 {[%clk 0:04:14.6]} 12...
Qd8 {[%clk 0:04:35.2]} 13. Bd2 {[%clk 0:04:08]} 13... Nxd3 {[%clk 0:04:32.5]}
14. Qxd3 {[%clk 0:04:06.8]} 14... Bd7 {[%clk 0:04:28.3]} 15. Rfc1 {[%clk
0:03:59.4]} 15... a6 {[%clk 0:04:17.5]} 16. Nc3 {[%clk 0:03:51.8]} 16... Bb4
{[%clk 0:04:15.8]} 17. Ne2 {[%clk 0:03:44.1]} 17... Bb5 {[%clk 0:04:08.3]} 18.
Qc2 {[%clk 0:03:31]} 18... Bxe2 {[%clk 0:03:59.2]} 19. Bxb4 {[%clk 0:03:27.2]}
19... Bxf3 {[%clk 0:03:58.5]} 20. Bxf8 {[%clk 0:03:20.1]} 20... Be4 {[%clk
0:03:57.8]} 21. Qc7 {[%clk 0:03:11.1]} 21... Qxf8 {[%clk 0:03:56.8]} 22. Qxb7
{[%clk 0:03:09.7]} 22... Bd3 {[%clk 0:03:33.3]} 23. Ra3 {[%clk 0:02:59.4]} 23...
Bb5 {[%clk 0:03:31.9]} 24. Rac3 {[%clk 0:02:53.1]} 24... Bd7 {[%clk 0:03:10.2]}
25. Rc7 {[%clk 0:02:46.3]} 25... Qd8 {[%clk 0:03:04.7]} 26. h3 {[%clk
0:02:33.3]} 26... g6 {[%clk 0:03:03.3]} 27. g4 {[%clk 0:02:28.5]} 27... g5
{[%clk 0:02:43.2]} 28. Kg2 {[%clk 0:02:18]} 28... Kg7 {[%clk 0:02:40.8]} 29. Qb6
{[%clk 0:02:12.8]} 29... Kg6 {[%clk 0:02:17.4]} 30. Qd6 {[%clk 0:02:09.7]} 30...
Bb5 {[%clk 0:02:12.1]} 31. Qe5 {[%clk 0:02:06.1]} 31... Rb8 {[%clk 0:01:56]} 32.
Kg3 {[%clk 0:01:55.1]} 32... Bc4 {[%clk 0:01:52.7]} 33. Rc2 {[%clk 0:01:48.2]}
33... Nd7 {[%clk 0:01:28.2]} 34. Qd6 {[%clk 0:01:43]} 34... Nf6 {[%clk
0:01:23.3]} 35. Qxd8 {[%clk 0:01:41.8]} 35... Rxd8 {[%clk 0:01:21.8]} 36. f3
{[%clk 0:01:40.3]} 36... Rb8 {[%clk 0:01:19.6]} 37. h4 {[%clk 0:01:35.9]} 37...
gxh4+ {[%clk 0:01:16.5]} 38. Kxh4 {[%clk 0:01:34.7]} 38... Rb3 {[%clk
0:01:16.3]} 39. g5 {[%clk 0:01:27.7]} 39... Nh5 {[%clk 0:01:08.7]} 40. Rc3
{[%clk 0:01:18.6]} 40... Rxb2 {[%clk 0:01:06.3]} 41. e4 {[%clk 0:01:07.6]} 41...
Rh2+ {[%clk 0:01:01.7]} 42. Kg4 {[%clk 0:01:06.4]} 42... Rg2+ {[%clk 0:01:00.4]}
43. Kh3 {[%clk 0:01:05.5]} 43... Rg3+ {[%clk 0:00:58.1]} 44. Kh2 {[%clk
0:01:04.7]} 44... Rxg5 {[%clk 0:00:53]} 45. exd5 {[%clk 0:01:01.1]} 45... Bxd5
{[%clk 0:00:51.7]} 46. Ra7 {[%clk 0:00:56.4]} 46... Nf4 {[%clk 0:00:49.7]} 47.
Rxa6 {[%clk 0:00:47]} 47... h5 {[%clk 0:00:48.5]} 48. Rb6 {[%clk 0:00:42.2]}
48... h4 {[%clk 0:00:46.4]} 49. a6 {[%clk 0:00:39.4]} 49... h3 {[%clk
0:00:44.8]} 50. Rb1 {[%clk 0:00:36.9]} 50... Rg2+ {[%clk 0:00:43.7]} 51. Kh1
{[%clk 0:00:35.6]} 51... Ne2 {[%clk 0:00:38.5]} 52. f4 {[%clk 0:00:27.5]} 52...
Ng3+ {[%clk 0:00:37.7]} 53. Rxg3+ {[%clk 0:00:25.4]} 53... Rxg3+ {[%clk
0:00:37]} 54. Kh2 {[%clk 0:00:24.6]} 54... Ra3 {[%clk 0:00:34.6]} 55. Rg1+
{[%clk 0:00:19.2]} 55... Bg2 {[%clk 0:00:33.3]} 56. Rd1 {[%clk 0:00:15.7]} 56...
Rxa6 {[%clk 0:00:31.7]} 57. d5 {[%clk 0:00:15]} 57... Bxd5 {[%clk 0:00:29.3]}
58. Kxh3 {[%clk 0:00:14]} 58... Ra3+ {[%clk 0:00:28.7]} 59. Kg4 {[%clk
0:00:11.1]} 59... Rf3 {[%clk 0:00:27.3]} 60. Rxd5 {[%clk 0:00:05.2]} 60... Rxf4+
{[%clk 0:00:26.2]} 61. Kxf4 {[%clk 0:00:03.8]} 61... exd5 {[%clk 0:00:25.6]} 62.
Ke5 {[%clk 0:00:03.4]} 62... Kg5 {[%clk 0:00:24.4]} 63. Kxd5 {[%clk 0:00:01.9]}
63... Kg4 {[%clk 0:00:23.9]} 64. Ke4 {[%clk 0:00:01.1]} 64... f5+ {[%clk
0:00:22.4]} 65. Ke3 {[%clk 0:00:00.1]} 65... Kg3 {[%clk 0:00:21.9]} 0-1

[Event "Live Chess"]
[Site "Chess.com"]
[Date "2024.06.01"]
[Round "-"]
[White "akp42"]
[Black "alexholowczak"]
[Result "1-0"]
[WhiteElo "1996"]
[BlackElo "1447"]
[TimeControl "300"]
[EndTime "9:56:03 PDT"]
[Termination "akp42 won by checkmate"]

1. e4 {[%clk 0:04:57.9]} 1... e6 {[%clk 0:04:59]} 2. d4 {[%clk 0:04:56.1]} 2...
d5 {[%clk 0:04:58.3]} 3. e5 {[%clk 0:04:55.7]} 3... c5 {[%clk 0:04:57.5]} 4. c3
{[%clk 0:04:54.8]} 4... Nc6 {[%clk 0:04:56.5]} 5. Be3 {[%clk 0:04:53.9]} 5...
Qb6 {[%clk 0:04:53]} 6. Qd2 {[%clk 0:04:50.3]} 6... Bd7 {[%clk 0:04:48.4]} 7.
Nf3 {[%clk 0:04:48.6]} 7... Rc8 {[%clk 0:04:40]} 8. Be2 {[%clk 0:04:45.6]} 8...
Nh6 {[%clk 0:04:29.9]} 9. O-O {[%clk 0:04:42]} 9... Nf5 {[%clk 0:04:26.8]} 10.
dxc5 {[%clk 0:04:25.4]} 10... Bxc5 {[%clk 0:04:16.3]} 11. Bxc5 {[%clk
0:04:23.8]} 11... Qxc5 {[%clk 0:04:14.9]} 12. Qg5 {[%clk 0:04:22.4]} 12... Qe7
{[%clk 0:03:43.6]} 13. Qh5 {[%clk 0:04:03.3]} 13... g6 {[%clk 0:03:27.3]} 14.
Qg4 {[%clk 0:04:00.9]} 14... O-O {[%clk 0:02:45]} 15. Nbd2 {[%clk 0:03:58.4]}
15... f6 {[%clk 0:02:38]} 16. exf6 {[%clk 0:03:48.9]} 16... Rxf6 {[%clk
0:02:35.3]} 17. Rae1 {[%clk 0:03:33.9]} 17... e5 {[%clk 0:02:31.8]} 18. Qg5
{[%clk 0:03:22.9]} 18... e4 {[%clk 0:02:25.1]} 19. Bb5 {[%clk 0:02:51.6]} 19...
Qf7 {[%clk 0:02:05.5]} 20. Bxc6 {[%clk 0:02:44.3]} 20... bxc6 {[%clk 0:01:45.3]}
21. Ne5 {[%clk 0:02:42.3]} 21... Qe7 {[%clk 0:01:35.3]} 22. Nxd7 {[%clk
0:02:40.6]} 22... Qxd7 {[%clk 0:01:28.1]} 23. Qxf6 {[%clk 0:02:39.2]} 23... Rf8
{[%clk 0:01:25.9]} 24. Qg5 {[%clk 0:02:31.9]} 24... Qb7 {[%clk 0:01:16.1]} 25.
Nb3 {[%clk 0:02:28.1]} 25... Qb5 {[%clk 0:01:00.8]} 26. h4 {[%clk 0:02:17.6]}
26... a5 {[%clk 0:00:57.8]} 27. h5 {[%clk 0:02:12.4]} 27... a4 {[%clk
0:00:36.9]} 28. Nd4 {[%clk 0:02:02.6]} 28... Nxd4 {[%clk 0:00:30.9]} 29. cxd4
{[%clk 0:02:01.2]} 29... Qxb2 {[%clk 0:00:28.7]} 30. hxg6 {[%clk 0:01:57.1]}
30... hxg6 {[%clk 0:00:24.8]} 31. Qxg6+ {[%clk 0:01:55.1]} 31... Kh8 {[%clk
0:00:23.9]} 32. Rb1 {[%clk 0:01:52.8]} 32... Qxd4 {[%clk 0:00:19.3]} 33. Rb7
{[%clk 0:01:49.3]} 33... Qf6 {[%clk 0:00:03.8]} 34. Qh7# {[%clk 0:01:46.7]} 1-0